bitfinex/quotes_BTCUSD_20251217
["timestamp","ask_amount","ask_price","bid_price","bid_amount"]
[1765998516571,0.0907,85566.0,85531.0,0.0001]
[1765998516572,0.50274,85560.0,85531.0,0.0001]
[1765998516796,1.0907,85553.0,85510.0,4.561e-05]
[1765998517000,0.00099999,85560.0,85510.0,4.561e-05]
[1765998517001,1.0,85549.0,85510.0,4.561e-05]
[1765998517142,0.50274,85547.0,85501.0,0.49536]
[1765998517345,0.50274,85543.0,85508.0,0.29363]
[1765998517524,0.50274,85537.0,85508.0,0.29363]
[1765998517725,0.01872,85536.0,85507.0,0.20173]
[1765998517994,0.01872,85536.0,85501.0,0.01872]
[1765998518182,0.00199999,85560.0,85501.0,0.01872]
[1765998518183,0.0907,85559.0,85501.0,0.01872]
[1765998518380,0.0907,85552.0,85501.0,0.01872]
[1765998518622,0.0907,85552.0,85500.0,11.063133]
[1765998518623,0.0907,85547.0,85500.0,11.063133]
[1765998518812,0.05101838,85540.0,85500.0,11.063133]
[1765998519045,0.05101838,85540.0,85500.0,9.249763]
[1765998519046,0.82761839,85532.0,85500.0,9.249763]
[1765998519246,0.0907,85528.0,85500.0,9.247763]
[1765998519529,1.0,85525.0,85500.0,9.247763]
[1765998519705,0.7776,85522.0,85500.0,9.247763]
[1765998519909,0.0907,85519.0,85500.0,9.247763]
[1765998520071,0.01834501,85531.0,85500.0,9.247763]
[1765998520072,0.6869,85521.0,85500.0,9.247763]
[1765998520271,0.01872,85520.0,85500.0,9.247763]
[1765998520516,0.01872,85520.0,85500.0,8.497763]
[1765998520517,0.0907,85518.0,85500.0,8.497763]
[1765998520718,0.011103,85517.0,85500.0,6.443493]
[1765998520871,0.00161,85517.0,85500.0,6.436493]
[1765998521073,0.00161,85517.0,85500.0,6.433493]
[1765998521271,0.05828132,85554.0,85500.0,6.433493]
[1765998521272,0.01872,85522.0,85500.0,6.433493]
[1765998521535,0.00099999,85550.0,85500.0,6.433493]
[1765998521536,0.0907,85538.0,85500.0,6.433493]
[1765998521765,0.01876,85530.0,85500.0,6.433493]
[1765998521903,0.00161,85530.0,85503.0,0.70689]
[1765998522106,0.05873624,85552.0,85500.0,6.433493]
[1765998522107,0.03515525,85545.0,85507.0,0.70689]
[1765998522306,0.01876,85544.0,85513.0,0.70689]
[1765998522506,0.01876,85544.0,85501.0,0.07450177]
[1765998522507,1.0,85543.0,85501.0,0.78139177]
[1765998522808,1.0,85538.0,85501.0,0.78139177]
[1765998523175,10.0,85531.0,85507.0,0.001]
[1765998523379,10.00161,85531.0,85507.0,0.001]
[1765998523601,10.00161,85531.0,85501.0,0.07450177]
[1765998523805,0.01876,85530.0,85501.0,0.07450177]
[1765998524348,0.0907,85528.0,85500.0,6.428493]
[1765998524571,0.01876,85527.0,85500.0,6.422493]
[1765998524932,0.01834617,85523.0,85500.0,6.422493]
[1765998525173,0.01834617,85523.0,85522.0,0.00148883]
[1765998525329,0.01834617,85523.0,85500.0,6.422493]
[1765998525548,10.00161,85531.0,85505.0,0.70689]
[1765998525549,0.01876,85525.0,85505.0,0.70689]
[1765998525753,10.00161,85531.0,85511.0,0.70689]
[1765998525960,10.00161,85531.0,85513.0,0.48627]
[1765998525961,10.00361,85531.0,85513.0,0.48627]
[1765998526190,10.00161,85531.0,85513.0,0.48627]
[1765998526430,10.00161,85531.0,85518.0,1.19316]
[1765998526662,10.00161,85531.0,85505.0,0.01876]
[1765998526663,6.475,85531.0,85510.0,0.72861618]
[1765998526802,5.425,85531.0,85512.0,0.48627]
[1765998527001,4.901,85531.0,85512.0,0.48627]
[1765998527403,4.901,85531.0,85512.0,0.01169426]
[1765998527644,4.901,85531.0,85505.0,0.01876]
[1765998527645,4.901,85531.0,85520.0,0.72861618]
[1765998527962,4.901,85531.0,85527.0,0.05001839]
[1765998528117,4.901,85531.0,85528.0,0.01876]
[1765998528500,4.901,85531.0,85510.0,0.72861618]
[1765998528704,4.901,85531.0,85516.0,0.07450177]
[1765998528905,4.90066987,85531.0,85511.0,0.14280953]
[1765998529106,4.90066987,85531.0,85515.0,0.07450177]
[1765998529364,4.90066987,85531.0,85528.0,0.002]
[1765998529703,4.90066987,85531.0,85525.0,0.01876]
[1765998529911,4.90066987,85531.0,85530.0,0.14071839]
[1765998530814,4.90066987,85531.0,85528.0,0.01169207]
[1765998530815,4.90066987,85531.0,85528.0,0.002]
[1765998531011,4.90066987,85531.0,85530.0,0.01876]
[1765998531851,4.90227987,85531.0,85530.0,0.01876]
[1765998532757,4.90227987,85531.0,85530.0,0.001]
[1765998533600,4.90227987,85531.0,85515.0,0.01876]
[1765998533839,4.90227987,85531.0,85530.0,0.001]
[1765998534183,4.90227987,85531.0,85514.0,0.00025902]
[1765998534184,4.69376409,85531.0,85514.0,0.00025902]
[1765998534378,0.0907,85530.0,85501.0,0.00936537]
[1765998534599,0.0907,85526.0,85500.0,3.118493]
[1765998534803,4.82637487,85531.0,85500.0,3.118493]
[1765998534804,0.73198,85524.0,85500.0,2.296633]
[1765998535035,0.73198,85522.0,85500.0,2.287633]
[1765998535259,0.0907,85513.0,85500.0,2.22261942]
[1765998535461,0.73198,85511.0,85500.0,2.10259226]
[1765998535705,0.01876,85512.0,85500.0,2.10259226]
[1765998535706,0.73198,85509.0,85500.0,1.65438362]
[1765998536190,0.73198,85523.0,85500.0,1.65538362]
[1765998536396,0.73198,85523.0,85500.0,1.65438362]
[1765998536397,0.07450177,85523.0,85500.0,1.65438362]
[1765998536544,0.01876,85522.0,85500.0,1.65438362]
[1765998536750,0.001,85511.0,85500.0,1.65438362]
[1765998536944,0.73198,85512.0,85500.0,1.65338362]
[1765998537155,0.05001839,85541.0,85500.0,1.65338362]
[1765998537156,0.46716253,85531.0,85511.0,0.00151287]
[1765998537358,0.46716253,85531.0,85501.0,1.06405331]
[1765998537359,0.44997328,85531.0,85530.0,1.09221287]
[1765998537566,0.73198,85597.0,85543.0,0.14071839]
[1765998537916,1.0,85609.0,85545.0,0.06170814]
[1765998538113,0.01987999,85610.0,85545.0,0.06170814]
[1765998538114,0.73198,85602.0,85555.0,0.05001839]
[1765998538312,0.01888,85610.0,85555.0,0.05001839]
[1765998538313,0.01888,85610.0,85564.0,0.01168715]
[1765998538459,0.73198,85609.0,85567.0,0.01168674]
[1765998538660,0.73198,85609.0,85574.0,0.01168579]
[1765998538888,0.51687,85622.0,85580.0,0.97399897]
[1765998539061,0.0004,85622.0,85581.0,0.01888]
[1765998539407,0.0004,85622.0,85581.0,0.00151287]
[1765998539580,0.73198,85621.0,85582.0,0.01888]
[1765998539916,0.0907,85620.0,85586.0,0.01168415]
[1765998540122,0.003,85610.0,85597.0,0.01168265]
[1765998540417,0.73238,85622.0,85597.0,0.00151287]
[1765998540656,0.73738,85622.0,85598.0,0.01888]
[1765998540867,0.0054,85622.0,85598.0,0.03207538]
[1765998541218,0.0054,85622.0,85609.0,0.01168101]
[1765998541464,0.0054,85622.0,85613.0,0.01168046]
[1765998541667,0.0054,85622.0,85614.0,0.01888]
[1765998541906,0.0004,85622.0,85621.0,0.00151287]
[1765998542307,0.0004,85622.0,85551.0,0.04198173]
[1765998542308,0.0004,85622.0,85588.0,0.01168388]
[1765998542511,0.0004,85622.0,85580.0,0.72861618]
[1765998542512,0.0004,85622.0,85599.0,0.01168237]
[1765998542717,0.00375765,85615.0,85614.0,0.01168033]
[1765998542921,1e-08,85622.0,85621.0,0.23510042]
[1765998543129,1e-08,85622.0,85621.0,0.28211881]
[1765998543339,1e-08,85622.0,85621.0,0.05001839]
[1765998543541,1e-08,85622.0,85614.0,0.2641665]
[1765998543542,1e-08,85622.0,85603.0,0.01168183]
[1765998543657,1e-08,85622.0,85607.0,0.05001839]
[1765998543867,1e-08,85622.0,85616.0,0.24527925]
[1765998544076,1e-08,85622.0,85615.0,0.05001839]
[1765998544395,1e-08,85622.0,85617.0,0.01167992]
[1765998544600,1e-08,85622.0,85618.0,0.01888]
[1765998544799,1e-08,85622.0,85619.0,0.05001839]
[1765998545115,0.00100001,85622.0,85619.0,0.05001839]
[1765998545319,1e-08,85622.0,85619.0,0.05001839]
[1765998545522,1e-08,85622.0,85620.0,0.01888]
[1765998545718,1e-08,85622.0,85621.0,0.01888]
[1765998546419,1e-08,85622.0,85612.0,0.05001839]
[1765998546589,1e-08,85622.0,85619.0,0.004]
[1765998546795,0.00161288,85622.0,85616.0,0.01888]
[1765998548137,0.00161288,85622.0,85621.0,0.004]
[1765998549010,0.00161288,85622.0,85606.0,0.01888]
[1765998549230,0.00161288,85622.0,85577.0,0.01168538]
[1765998549439,0.50977,85621.0,85585.0,0.05642199]
[1765998549632,1.28796414,85620.0,85586.0,0.01888]
[1765998549869,0.0907,85617.0,85585.0,0.0014613]
[1765998550015,0.09231287,85617.0,85587.0,0.01888]
[1765998550349,0.09231287,85617.0,85585.0,0.0014613]
[1765998550524,0.00161287,85617.0,85585.0,0.0014613]
[1765998550706,0.0907,85616.0,85585.0,0.0014613]
[1765998551110,0.0907,85616.0,85586.0,0.00299]
[1765998551469,2.87e-06,85617.0,85594.0,0.00299]
[1765998551594,1.41e-06,85623.0,85605.0,0.00112]
[1765998551795,1.41e-06,85623.0,85608.0,0.01280115]
[1765998552013,1.41e-06,85623.0,85616.0,0.00112]
[1765998552253,1.41e-06,85623.0,85622.0,0.00273287]
[1765998552459,1.41e-06,85623.0,85622.0,0.00161287]
[1765998552658,1.41e-06,85623.0,85622.0,0.01884]
[1765998552865,1.41e-06,85623.0,85603.0,0.05001839]
[1765998553080,1.41e-06,85623.0,85590.0,0.00112]
[1765998553272,0.00907155,85623.0,85591.0,0.07490069]
[1765998553472,0.00907155,85623.0,85591.0,0.05767356]
[1765998553671,0.69229,85620.0,85592.0,0.01884]
[1765998553868,0.51279,85619.0,85591.0,0.00161287]
[1765998554070,0.0907,85617.0,85593.0,0.01884]
[1765998554242,0.60349,85617.0,85593.0,0.01884]
[1765998554448,0.60349,85617.0,85591.0,0.00161287]
[1765998554449,0.0907,85614.0,85591.0,0.00161287]
[1765998554654,0.60349,85615.0,85591.0,0.00161287]
[1765998554873,0.0907,85615.0,85591.0,0.00161287]
[1765998555101,0.01884,85614.0,85540.0,0.00199998]
[1765998555251,0.01884,85614.0,85545.0,0.05752069]
[1765998555252,0.0907,85608.0,85545.0,0.05752069]
[1765998555472,0.83300839,85606.0,85546.0,0.00146]
[1765998555636,0.0907,85595.0,85531.0,0.00146]
[1765998555836,0.05001839,85599.0,85532.0,0.00146]
[1765998555837,0.0907,85586.0,85532.0,0.00146]
[1765998556085,0.01888,85594.0,85533.0,0.00146]
[1765998556086,0.78299,85580.0,85533.0,0.00146]
[1765998556256,0.0907,85578.0,85536.0,0.00146]
[1765998556441,0.0907,85575.0,85536.0,0.00307287]
[1765998556655,0.0907,85575.0,85537.0,0.00146]
[1765998556656,0.01884,85574.0,85537.0,0.00146]
[1765998556919,0.01884,85574.0,85537.0,0.00161287]
[1765998557104,0.01884,85574.0,85538.0,0.00146]
[1765998557275,0.0907,85572.0,85538.0,0.00307287]
[1765998558203,0.08821,85570.0,85538.0,0.00161287]
[1765998558402,0.01884,85574.0,85543.0,0.01169002]
[1765998558403,0.02084,85574.0,85543.0,0.01169002]
[1765998558621,0.02084,85574.0,85544.0,1.0]
[1765998558770,0.51279,85595.0,85545.0,0.06885839]
[1765998558971,0.51279,85598.0,85557.0,1.0]
[1765998559176,0.001,85572.0,85558.0,1.0]
[1765998559373,0.51279,85594.0,85558.0,0.00161287]
[1765998559627,0.51279,85595.0,85558.0,0.00161287]
[1765998560213,0.51279,85589.0,85558.0,0.00161287]
[1765998560410,1.20508,85585.0,85558.0,0.00161287]
[1765998560891,0.001,85574.0,85558.0,0.00161287]
[1765998561163,0.01884,85581.0,85558.0,0.00161287]
[1765998561385,1.20508,85580.0,85519.0,0.23386475]
[1765998561554,0.0907,85569.0,85542.0,0.00161287]
[1765998561879,0.0907,85569.0,85555.0,0.00122773]
[1765998562121,0.01833243,85571.0,85523.0,0.0002]
[1765998562342,0.51279,85568.0,85524.0,0.01169262]
[1765998562557,0.00026656,85586.0,85524.0,0.01169262]
[1765998562558,0.51305656,85586.0,85541.0,0.05606069]
[1765998562761,0.01884,85580.0,85542.0,1.0]
[1765998562970,0.001,85569.0,85544.0,1.0]
[1765998563182,0.001,85569.0,85547.0,0.01168948]
[1765998563425,0.001,85569.0,85547.0,0.00161287]
[1765998563628,0.001,85569.0,85557.0,0.01168811]
[1765998563739,0.001,85569.0,85557.0,0.00161287]
[1765998563947,0.001,85569.0,85557.0,0.02045287]
[1765998564168,0.00026656,85586.0,85557.0,0.02045287]
[1765998564985,0.00026656,85586.0,85558.0,0.05001839]
[1765998565350,0.00026656,85586.0,85559.0,0.01884]
[1765998565498,0.00026656,85586.0,85559.0,0.02045287]
[1765998566225,0.51279,85585.0,85560.0,0.01884]
[1765998566525,0.69255656,85586.0,85560.0,0.00161287]
[1765998566526,0.51279,85583.0,85560.0,0.00161287]
[1765998566682,0.69229,85579.0,85549.0,0.01884]
[1765998566890,0.51279,85574.0,85549.0,0.00161287]
[1765998567127,0.51279,85568.0,85523.0,0.01423131]
[1765998567331,0.00026656,85586.0,85528.0,0.05606069]
[1765998567332,0.51279,85564.0,85528.0,0.05606069]
[1765998567560,0.0907,85575.0,85529.0,0.01403032]
[1765998567715,0.0907,85571.0,85559.0,0.002]
[1765998567922,0.0907,85571.0,85529.0,0.00161287]
[1765998567923,0.51279,85570.0,85529.0,0.00161287]
[1765998568327,0.69229,85567.0,85530.0,0.05606069]
[1765998568535,0.0907,85566.0,85530.0,0.05767356]
[1765998568732,0.01884,85570.0,85532.0,0.05001839]
[1765998568931,0.01884,85570.0,85532.0,0.00161287]
[1765998569157,0.01884,85570.0,85533.0,0.01169139]
[1765998569423,0.01884,85570.0,85534.0,1.0]
[1765998569628,0.00026656,85586.0,85547.0,0.05606069]
[1765998569629,0.01884,85579.0,85547.0,0.05606069]
[1765998569783,0.01884,85579.0,85548.0,0.05606069]
[1765998569944,0.01884,85579.0,85548.0,0.00161287]
[1765998570149,0.51279,85572.0,85548.0,0.00161287]
[1765998570347,1.20508,85567.0,85548.0,0.00161287]
[1765998570826,0.69229,85567.0,85530.0,0.05606069]
[1765998570999,0.69229,85563.0,85530.0,0.05767356]
[1765998571209,0.01884,85562.0,85530.0,0.00161287]
[1765998571382,0.11546078,85561.0,85530.0,0.00161287]
[1765998572417,0.11546078,85561.0,85530.0,0.00261287]
[1765998572642,0.01884,85562.0,85530.0,0.00261287]
[1765998572849,0.78299,85560.0,85530.0,0.00261287]
[1765998573150,0.01884,85562.0,85530.0,0.00261287]
[1765998573373,0.51279,85559.0,85530.0,0.00261287]
[1765998573561,0.01884,85562.0,85530.0,0.00161287]
[1765998573562,0.053163,85558.0,85530.0,0.00161287]
[1765998573769,0.0907,85560.0,85530.0,0.00161287]
[1765998573965,0.00026656,85586.0,85530.0,0.00261287]
[1765998573966,0.01884,85559.0,85530.0,0.00261287]
[1765998574166,0.01884,85559.0,85530.0,0.00161287]
[1765998574367,0.01884,85563.0,85530.0,0.09439287]
[1765998574571,0.001,85559.0,85530.0,0.09439287]
[1765998574783,0.01884,85563.0,85530.0,0.09439287]
[1765998574940,0.001,85559.0,85530.0,0.00161287]
[1765998575143,0.69229,85558.0,85519.0,0.01884]
[1765998575460,0.01884,85562.0,85520.0,0.09278]
[1765998575659,0.69229,85561.0,85520.0,0.09278]
[1765998576381,0.0907,85560.0,85522.0,0.09278]
[1765998576606,0.69229,85561.0,85528.0,0.09278]
[1765998576806,0.05819584,85583.0,85519.0,0.03258483]
[1765998576807,0.51279,85556.0,85530.0,0.001]
[1765998577109,0.11546078,85555.0,85519.0,0.11133287]
[1765998577309,0.51279,85556.0,85519.0,0.11133287]
[1765998577475,0.69229,85558.0,85519.0,0.11133287]
[1765998577676,0.69229,85558.0,85528.0,0.09278]
[1765998577877,0.01884,85566.0,85528.0,0.09278]
[1765998578667,0.11115287,85566.0,85528.0,0.09278]
[1765998578897,0.01262673,85565.0,85528.0,0.09278]
[1765998579242,0.0142396,85565.0,85528.0,0.09278]
[1765998579424,0.00161287,85565.0,85528.0,0.09278]
[1765998579572,0.00161287,85565.0,85527.0,0.05606069]
[1765998579573,0.00161287,85565.0,85530.0,0.27411]
[1765998580941,0.00161287,85565.0,85530.0,0.27611]
[1765998581168,0.00161287,85565.0,85541.0,0.27411]
[1765998581324,0.01884,85589.0,85546.0,0.05001839]
[1765998581486,0.51406,85590.0,85549.0,0.2725]
[1765998581691,0.74384,85588.0,85549.0,0.27411]
[1765998582340,0.74384,85588.0,85554.0,0.2725]
[1765998582544,0.74384,85588.0,85556.0,0.2725]
[1765998582780,0.74384,85588.0,85547.0,0.00025887]
[1765998582781,0.00146174,85585.0,85547.0,0.00025887]
[1765998582947,0.01833316,85580.0,85540.0,0.01835]
[1765998583125,0.0907,85577.0,85540.0,0.01835]
[1765998583325,1.2579,85578.0,85540.0,0.01835]
[1765998583527,0.0907,85573.0,85540.0,0.01835]
[1765998583726,1.2579,85572.0,85540.0,0.01835]
[1765998583913,0.0907,85573.0,85540.0,0.01835]
[1765998584117,0.51406,85572.0,85540.0,0.01835]
[1765998584314,1.2579,85572.0,85540.0,0.01835]
[1765998584536,1.37336078,85572.0,85540.0,0.01835]
[1765998584914,1.2579,85572.0,85541.0,0.27166]
[1765998585253,0.00161287,85572.0,85540.0,0.01835]
[1765998585698,0.0907,85566.0,85515.0,0.27166]
[1765998585910,0.74384,85553.0,85515.0,0.27166]
[1765998586085,0.74384,85553.0,85516.0,0.01884]
[1765998586086,0.74384,85547.0,85516.0,0.01884]
[1765998586350,0.00161287,85547.0,85516.0,0.01884]
[1765998586549,1.2579,85545.0,85516.0,0.01884]
[1765998586742,1.2579,85545.0,85516.0,0.2905]
[1765998586865,0.00161287,85547.0,85516.0,0.2905]
[1765998587065,0.74384,85543.0,85516.0,0.01884]
[1765998587282,0.07454529,85542.0,85509.0,0.1]
[1765998587484,0.00261287,85547.0,85515.0,0.01884]
[1765998587485,0.74384,85539.0,85515.0,0.01884]
[1765998587687,1.2579,85539.0,85515.0,0.01884]
[1765998587882,0.74384,85536.0,85515.0,0.01884]
[1765998588136,0.00161287,85547.0,85509.0,0.1]
[1765998588340,0.0907,85545.0,85510.0,0.01884]
[1765998588579,0.51406,85539.0,85510.0,0.01784]
[1765998588728,0.74384,85534.0,85510.0,0.01074]
[1765998588934,0.74384,85528.0,85509.0,0.1]
[1765998589110,0.04923536,85539.0,85509.0,0.1]
[1765998589111,0.04923536,85539.0,85509.0,0.092]
[1765998589314,0.0907,85537.0,85501.0,0.01884]
[1765998589499,1.2579,85532.0,85501.0,0.01874]
[1765998589704,0.0907,85535.0,85501.0,0.01874]
[1765998589924,0.0907,85532.0,85500.0,1.65038362]
[1765998590128,0.0907,85530.0,85500.0,1.65038362]
[1765998590341,0.01399354,85534.0,85500.0,1.65038362]
[1765998590517,0.03039536,85535.0,85500.0,1.64338362]
[1765998590722,0.001,85532.0,85500.0,1.64328362]
[1765998590948,0.0907,85530.0,85500.0,1.64328362]
[1765998591122,0.0907,85528.0,85500.0,1.64328362]
[1765998591326,0.51406,85525.0,85500.0,1.64328362]
[1765998591609,0.001,85532.0,85500.0,1.64328362]
[1765998591610,1.2579,85520.0,85500.0,1.64018362]
[1765998592441,0.01884,85524.0,85500.0,1.64018362]
[1765998592442,0.74384,85521.0,85500.0,1.64018362]
[1765998592647,0.01884,85524.0,85500.0,1.64018362]
[1765998592648,0.01884,85524.0,85500.0,1.63818362]
[1765998592855,0.01884,85524.0,85500.0,1.63095762]
[1765998593052,0.51406,85523.0,85500.0,1.62295762]
[1765998593250,0.01884,85524.0,85512.0,0.00025903]
[1765998593251,0.05329,85522.0,85512.0,0.00025903]
[1765998593451,0.05329,85522.0,85500.0,1.61595762]
[1765998593452,0.01884,85524.0,85500.0,1.60821665]
[1765998593696,0.01884,85524.0,85500.0,1.59921665]
[1765998593877,0.51406,85523.0,85500.0,1.59211665]
[1765998594093,0.01884,85524.0,85500.0,1.58411665]
[1765998594298,1.2579,85523.0,85500.0,1.57601665]
[1765998594466,0.51406,85519.0,85500.0,1.56801665]
[1765998594680,0.0188,85523.0,85500.0,1.56001665]
[1765998594877,0.0188,85523.0,85497.0,0.08517149]
[1765998595128,0.0188,85523.0,85486.0,0.01770149]
[1765998595678,0.74384,85517.0,85486.0,0.01770149]
[1765998595926,0.74384,85513.0,85486.0,0.01770149]
[1765998596059,0.01834531,85523.0,85488.0,0.70718]
[1765998596262,0.01834531,85523.0,85495.0,0.47787]
[1765998596500,0.0188,85533.0,85500.0,0.70718]
[1765998596702,0.0188,85533.0,85505.0,0.47787]
[1765998596899,0.0188,85533.0,85506.0,1.18505]
[1765998596900,0.085334,85532.0,85506.0,1.18505]
[1765998597226,0.085334,85532.0,85507.0,0.47387]
[1765998597435,0.51406,85532.0,85507.0,0.46487]
[1765998597643,0.0188,85533.0,85507.0,0.45587]
[1765998597962,1.2579,85530.0,85507.0,0.44387]
[1765998598168,0.00161287,85547.0,85508.0,0.70718]
[1765998598169,0.0907,85537.0,85508.0,0.70718]
[1765998598391,0.74384,85536.0,85491.0,0.05606069]
[1765998598564,1.2579,85534.0,85492.0,0.72598]
[1765998598808,0.74384,85534.0,85494.0,0.70718]
[1765998599014,0.34017816,85530.0,85495.0,0.47787]
[1765998599146,0.0907,85535.0,85495.0,0.47787]
[1765998599147,0.74384,85534.0,85495.0,0.47787]
[1765998599345,0.0188,85543.0,85498.0,0.70718]
[1765998599346,0.74384,85538.0,85498.0,0.70718]
[1765998599530,0.0907,85535.0,85499.0,0.47787]
[1765998599747,0.0907,85532.0,85501.0,0.47787]
[1765998599944,0.0907,85528.0,85500.0,0.70718]
[1765998600173,0.51406,85523.0,85500.0,0.70618]
[1765998600390,0.74384,85518.0,85493.0,0.0188]
[1765998600897,0.0188,85534.0,85493.0,0.0188]
[1765998600898,0.0907,85537.0,85493.0,0.0188]
[1765998601259,0.51406,85523.0,85493.0,0.0188]
[1765998601428,0.0198,85528.0,85493.0,0.0188]
[1765998601429,0.74384,85518.0,85493.0,0.0188]
[1765998601585,0.74384,85514.0,85493.0,0.0188]
[1765998601789,0.74384,85512.0,85493.0,0.0188]
[1765998602001,0.11546078,85514.0,85494.0,0.47787]
[1765998602203,0.51406,85531.0,85504.0,0.00025907]
[1765998602408,0.51406,85527.0,85499.0,1.18505]
[1765998602610,0.001,85518.0,85499.0,1.18420907]
[1765998602813,1.3486,85524.0,85499.0,1.18420907]
[1765998603207,0.001,85514.0,85493.0,0.49667]
[1765998603438,0.74384,85520.0,85493.0,0.49667]
[1765998603631,0.60476,85524.0,85493.0,0.49667]
[1765998603632,0.11546078,85519.0,85493.0,0.49667]
[1765998603840,0.74484,85518.0,85493.0,0.49667]
[1765998604035,0.0188,85528.0,85493.0,0.49667]
[1765998604599,0.0188,85528.0,85495.0,0.47787]
[1765998604800,0.0907,85527.0,85498.0,0.70718]
[1765998605086,0.0907,85525.0,85501.0,0.47787]
[1765998605267,0.00161287,85525.0,85503.0,0.47787]
[1765998605630,0.00161287,85525.0,85502.0,0.70718]
[1765998605631,0.51406,85523.0,85493.0,0.0188]
[1765998605830,0.00161287,85525.0,85493.0,0.0188]
[1765998605831,0.74384,85522.0,85497.0,0.70718]
[1765998606040,0.74384,85522.0,85497.0,1.18505]
[1765998606233,0.74384,85522.0,85498.0,0.47787]
[1765998606436,0.74384,85522.0,85500.0,0.47787]
[1765998606639,0.51406,85518.0,85495.0,0.0188]
[1765998607037,0.74384,85517.0,85495.0,0.0188]
[1765998607427,0.74172,85515.0,85469.0,0.79278]
[1765998607800,0.0188,85520.0,85467.0,0.0017331]
[1765998607801,1.2351,85511.0,85479.0,1.21856]
[1765998607941,1.2351,85511.0,85478.0,0.05606069]
[1765998607942,1.2351,85511.0,85480.0,0.51648]
[1765998608128,0.74172,85511.0,85486.0,0.51648]
[1765998608328,0.74172,85511.0,85488.0,0.51648]
[1765998608577,0.0188,85520.0,85493.0,0.70208]
[1765998608578,0.85122,85520.0,85493.0,0.70208]
[1765998608724,0.0907,85518.0,85496.0,0.70208]
[1765998608930,0.00161287,85525.0,85502.0,0.70208]
[1765998609246,0.49338,85524.0,85496.0,0.0188]
[1765998609429,0.02041287,85525.0,85490.0,0.51648]
[1765998609635,0.02041287,85525.0,85495.0,0.73441]
[1765998609636,0.69004,85523.0,85495.0,0.73441]
[1765998609839,0.51464,85518.0,85496.0,0.49916]
[1765998610037,1.20468,85518.0,85496.0,0.49916]
[1765998610286,0.02041287,85525.0,85498.0,0.49916]
[1765998610623,0.51464,85533.0,85498.0,0.49916]
[1765998610624,0.47326,85522.0,85498.0,0.00161287]
[1765998610734,0.47326,85522.0,85470.0,0.05001839]
[1765998610735,0.73646,85516.0,85481.0,0.47649287]
[1765998610943,0.47326,85511.0,85482.0,0.0188]
[1765998611137,0.47326,85508.0,85482.0,0.0188]
[1765998611397,0.47326,85502.0,85478.0,0.70117]
[1765998611698,0.73646,85495.0,85464.0,0.0002]
[1765998611993,0.73646,85495.0,85473.0,0.47698]
[1765998612198,0.73646,85495.0,85475.0,0.47698]
[1765998612530,0.73630173,85495.0,85475.0,0.475967]
[1765998612718,0.73630173,85495.0,85467.0,0.7217031]
[1765998612922,0.8165445,85495.0,85467.0,0.7217031]
[1765998613511,10.55350277,85495.0,85467.0,0.7217031]
[1765998613711,0.47326,85494.0,85467.0,0.7029031]
[1765998614073,0.09231287,85494.0,85467.0,0.7029031]
[1765998614274,0.09231287,85494.0,85469.0,0.70117]
[1765998614475,7.70345287,85495.0,85471.0,1.0]
[1765998614691,7.70345287,85495.0,85471.0,0.00161287]
[1765998615106,7.70345287,85495.0,85483.0,0.05606069]
[1765998615344,7.70345287,85495.0,85484.0,0.0700984]
[1765998615554,7.70345287,85495.0,85494.0,0.00161287]
[1765998615757,7.70445287,85495.0,85494.0,0.02041287]
[1765998615992,7.70445287,85495.0,85494.0,1.19666141]
[1765998616193,7.70345287,85495.0,85494.0,1.16113126]
[1765998616355,7.70445287,85495.0,85494.0,1.16113126]
[1765998616711,7.70345287,85495.0,85494.0,1.16113126]
[1765998616912,6.94950771,85495.0,85494.0,1.19666141]
[1765998617564,6.94950771,85495.0,85494.0,1.16113126]
[1765998618004,6.94950771,85495.0,85494.0,1.19392909]
[1765998618214,6.84751146,85495.0,85494.0,1.19392909]
[1765998618364,6.15337524,85495.0,85494.0,1.22871818]
[1765998618573,5.85251444,85495.0,85494.0,1.23471818]
[1765998618773,5.85151444,85495.0,85494.0,1.10152608]
[1765998618983,5.85151444,85495.0,85494.0,1.07043126]
[1765998619305,5.85151444,85495.0,85494.0,1.07643126]
[1765998619306,5.32312626,85495.0,85494.0,1.07643126]
[1765998620661,5.32312626,85495.0,85494.0,1.05763126]
[1765998620867,5.32312626,85495.0,85494.0,1.07643126]
[1765998621065,5.32312626,85495.0,85494.0,1.00761287]
[1765998621267,5.32212626,85495.0,85494.0,1.00161287]
[1765998621489,5.32312626,85495.0,85494.0,0.00661287]
[1765998621892,5.32212626,85495.0,85494.0,0.00161287]
[1765998622108,5.13476854,85495.0,85494.0,0.00161287]
[1765998622318,5.13576854,85495.0,85494.0,0.00661287]
[1765998622468,5.13476854,85495.0,85494.0,0.00161287]
[1765998622872,5.13476854,85495.0,85494.0,1.05563126]
[1765998622873,5.13576854,85495.0,85494.0,1.05563126]
[1765998623764,5.13576854,85495.0,85494.0,1.3802658]
[1765998624201,5.13576854,85495.0,85494.0,1.07439126]
[1765998624322,5.13576854,85495.0,85494.0,1.05563126]
[1765998624519,5.13476854,85495.0,85494.0,1.05163126]
[1765998624755,5.13476854,85495.0,85494.0,0.05163126]
[1765998624961,5.13576854,85495.0,85494.0,1.05663126]
[1765998625362,5.13476854,85495.0,85494.0,1.05163126]
[1765998625567,5.13476854,85495.0,85494.0,0.00461287]
[1765998625892,5.13476854,85495.0,85494.0,0.00161287]
[1765998626048,5.13476854,85495.0,85470.0,0.05606069]
[1765998626240,5.13476854,85495.0,85494.0,0.002]
[1765998627342,5.13476854,85495.0,85470.0,0.05606069]
[1765998627763,5.13476854,85495.0,85494.0,0.001]
[1765998627956,5.13476854,85495.0,85486.0,0.00187202]
[1765998628359,5.13676854,85495.0,85486.0,0.00187202]
[1765998628641,5.13476854,85495.0,85486.0,0.00187202]
[1765998629048,5.13576854,85495.0,85486.0,0.00187202]
[1765998629204,5.15356854,85495.0,85486.0,0.00187202]
[1765998629727,5.15356854,85495.0,85487.0,0.05606069]
[1765998629944,5.13476854,85495.0,85487.0,0.05767356]